bitfinex-derivatives/quotes_SOLF0:USTF0_20250816
["timestamp","ask_amount","ask_price","bid_price","bid_amount"]
[1755351263011,3.01,188.06,188.01,2.96]
[1755351263520,3.01,188.06,187.97,2.96]
[1755351265217,3.01,188.06,187.97,8.2763]
[1755351265414,3.01,188.06,187.98,2.96]
[1755351267009,3.94321231,188.05,187.98,2.96]
[1755351267206,3.01,188.05,187.96,2.96]
[1755351267615,3.62709859,188.06,187.96,2.96]
[1755351267616,3.01,188.03,187.96,2.96]
[1755351267810,3.01,188.01,187.94,5.317]
[1755351268015,3.01,188.01,187.97,2.96]
[1755351268412,3.01,188.01,187.98,2.96]
[1755351269216,3.01,188.01,187.93,3.62709859]
[1755351269412,3.01,188.01,187.91,3.62709859]
[1755351269619,3.01,188.01,187.92,2.96]
[1755351272815,6.63709859,188.01,187.9,2.96]
[1755351273014,3.01,188.0,187.9,2.96]
[1755351274623,3.01,188.0,187.9,8.2783]
[1755351274822,3.01,188.0,187.9,2.96]
[1755351275124,3.01,188.0,187.93,2.96]
[1755351279629,3.01,188.0,187.94,2.96]
[1755351282423,3.01,188.0,187.91,3.62709859]
[1755351282628,3.01,188.0,187.92,2.96]
[1755351287538,3.01,188.0,187.88,3.62709859]
[1755351287737,14.91131066,188.19,187.82,357.1]
[1755351287738,3.01,187.97,187.89,2.96]
[1755351295247,2.85,187.94,187.82,47.62709859]
[1755351295447,2.85,187.94,187.87,3.04]
[1755351299152,2.85,187.94,187.88,3.04]
[1755351299545,2.85,187.94,187.88,5.3189]
[1755351299747,3.62709859,187.98,187.85,3.62709859]
[1755351299748,2.85,187.97,187.89,3.04]
[1755351299949,2.85,187.95,187.89,3.04]
[1755351300553,2.85,187.95,187.89,8.3585]
[1755351300754,2.85,187.98,187.9,3.04]
[1755351300955,2.85,187.96,187.9,3.04]
[1755351301158,3.93209679,187.95,187.92,3.04]
[1755351301346,2.85,187.98,187.92,3.04]
[1755351301550,2.85,187.96,187.93,3.04]
[1755351301753,2.85,187.94,187.91,3.04]
[1755351301953,2.85,187.94,187.88,3.62709859]
[1755351301954,2.85,187.94,187.92,3.04]
[1755351302550,2.85,187.97,187.93,3.04]
[1755351302752,3.93624658,187.96,187.89,3.04]
[1755351302950,3.93624658,187.95,187.91,3.62709859]
[1755351303155,2.85,187.97,187.91,3.62709859]
[1755351303156,2.85,187.97,187.92,3.04]
[1755351303351,4.43531514,187.99,187.92,3.04]
[1755351303352,6.78598047,187.96,187.92,3.04]
[1755351303555,6.78598047,187.95,187.92,3.04]
[1755351303754,3.93598047,187.94,187.92,3.04]
[1755351304155,2.85,187.97,187.92,3.04]
[1755351304454,4.43531514,187.99,187.88,3.62709859]
[1755351304455,2.85,187.95,187.89,3.04]
[1755351304749,2.85,187.92,187.89,3.04]
[1755351306158,2.85,187.96,187.89,3.04]
[1755351306357,2.85,187.94,187.89,3.04]
[1755351306655,2.85,187.94,187.86,5.3193]
[1755351306656,2.85,187.92,187.86,3.04]
[1755351306853,2.85,187.9,187.83,3.04]
[1755351307154,2.85,187.88,187.83,3.04]
[1755351308362,2.85,187.88,187.83,5.3203]
[1755351308660,2.85,187.92,187.84,3.04]
[1755351308860,2.85,187.9,187.84,8.36]
[1755351309060,3.95315823,187.89,187.85,3.04]
[1755351309257,2.85,187.91,187.85,3.04]
[1755351309462,3.9544686,187.9,187.85,3.04]
[1755351309659,3.9544686,187.89,187.85,5.3196]
[1755351309959,2.85,187.91,187.86,3.04]
[1755351310163,6.8044686,187.9,187.86,3.04]
[1755351310364,6.8044686,187.89,187.86,3.04]
[1755351310566,2.85,187.89,187.86,3.04]
[1755351310960,4.43531514,187.93,187.86,3.04]
[1755351311261,5.96452426,187.96,187.86,3.04]
[1755351311262,2.85,187.89,187.86,3.04]
[1755351311857,2.85,187.88,187.86,3.04]
[1755351312054,7.28531514,187.91,187.82,3.04]
[1755351312258,2.85,187.86,187.82,3.04]
[1755351312461,2.85,187.9,187.82,3.04]
[1755351312662,2.85,187.88,187.82,3.04]
[1755351312867,3.95911626,187.87,187.82,3.04]
[1755351313165,2.85,187.91,187.82,3.04]
[1755351313361,3.95948277,187.9,187.82,3.04]
[1755351313562,6.80948277,187.89,187.84,3.04]
[1755351313762,6.80948277,187.88,187.84,3.04]
[1755351314068,3.95948277,187.87,187.84,5.32]
[1755351314262,2.85,187.88,187.85,3.04]
[1755351314468,2.85,187.91,187.85,3.04]
[1755351314760,6.80827624,187.9,187.87,3.04]
[1755351314967,3.95827624,187.89,187.87,3.04]
[1755351315165,2.85,187.89,187.82,3.04]
[1755351315463,2.85,187.89,187.84,5.32]
[1755351315663,2.85,187.89,187.85,3.04]
[1755351316968,2.85,187.89,187.86,3.04]
[1755351318476,2.85,187.88,187.84,5.32]
[1755351318672,2.85,187.88,187.85,2.88]
[1755351318875,2.85,187.88,187.85,5.3197]
[1755351319075,2.85,187.88,187.86,2.88]
[1755351319272,2.89,187.95,187.86,2.88]
[1755351319478,2.89,187.93,187.86,2.88]
[1755351319672,2.89,187.91,187.86,2.88]
[1755351319977,2.89,187.9,187.86,2.88]
[1755351320171,2.89,187.89,187.86,2.88]
[1755351320571,2.89,187.88,187.86,2.88]
[1755351321077,2.89,187.9,187.86,2.88]
[1755351321272,2.89,187.89,187.86,2.88]
[1755351321466,2.89,187.88,187.86,2.88]
[1755351321681,3.62709859,187.93,187.8,6.50709859]
[1755351321878,2.89,187.91,187.81,2.88]
[1755351322079,2.89,187.89,187.81,2.88]
[1755351322381,2.89,187.89,187.84,2.88]
[1755351322582,2.89,187.89,187.81,2.88]
[1755351322876,2.89,187.89,187.82,2.88]
[1755351323469,2.89,187.89,187.83,2.88]
[1755351323869,2.89,187.92,187.84,2.88]
[1755351324071,3.96243528,187.91,187.84,2.88]
[1755351324273,3.96243528,187.9,187.84,2.88]
[1755351324471,2.89,187.91,187.88,2.88]
[1755351324773,8.06241373,187.96,187.88,2.88]
[1755351324969,2.89,187.94,187.9,2.88]
[1755351325167,3.96217922,187.93,187.9,2.88]
[1755351325380,2.89,187.94,187.92,2.88]
[1755351325575,2.89,187.94,187.93,2.88]
[1755351325968,6.8520604,187.94,187.93,2.88]
[1755351329688,3.9620604,187.94,187.93,2.88]
[1755351329984,2.89,187.96,187.93,2.88]
[1755351330191,2.89,187.98,187.95,5.3169]
[1755351330482,3.96458509,187.97,187.96,2.88]
[1755351330685,6.85458509,187.97,187.96,2.88]
[1755351330986,2.89,187.96,187.94,2.88]
[1755351331184,6.85458509,187.95,187.94,2.88]
[1755351331580,2.89,187.94,187.93,2.88]
[1755351333182,2.89,187.99,187.93,2.88]
[1755351333385,2.89,187.97,187.93,2.88]
[1755351333580,6.85401881,187.96,187.93,2.88]
[1755351333780,2.89,187.96,187.93,2.88]
[1755351334383,2.89,187.95,187.93,2.88]
[1755351334983,2.89,187.95,187.94,2.88]
[1755351335581,4.43531514,188.0,187.94,2.88]
[1755351335885,2.89,187.98,187.94,2.88]
[1755351336084,2.89,187.96,187.94,2.88]
[1755351336475,2.89,187.96,187.93,5.3175]
[1755351336686,2.89,187.96,187.94,2.88]
[1755351337390,4.43531514,188.01,187.95,2.88]
[1755351337588,2.89,187.97,187.95,2.88]
[1755351338086,2.89,187.96,187.92,8.94459859]
[1755351338483,2.89,187.96,187.92,3.62709859]
[1755351338887,2.89,188.0,187.92,6.50709859]
[1755351339088,3.96193689,187.99,187.92,6.50709859]
[1755351339287,3.96193689,187.98,187.92,6.50709859]
[1755351339488,3.96193689,187.97,187.92,3.62709859]
[1755351339790,2.89,187.96,187.93,2.88]
[1755351340193,2.89,187.96,187.9,5.3183]
[1755351340386,2.89,187.96,187.91,2.88]
[1755351340584,2.89,187.96,187.92,2.88]
[1755351341291,2.89,187.96,187.9,2.88]
[1755351341485,3.96130951,187.95,187.89,5.3186]
[1755351341690,2.89,187.93,187.9,2.88]
[1755351342292,2.89,187.97,187.89,2.88]
[1755351342493,3.96140729,187.96,187.89,2.88]
[1755351342691,2.89,187.97,187.92,2.88]
[1755351343093,4.43531514,188.01,187.92,2.88]
[1755351343295,2.89,187.96,187.92,2.88]
[1755351343499,2.89,187.96,187.94,2.88]
[1755351343795,2.89,187.96,187.95,2.88]
[1755351344696,2.89,188.01,187.95,2.88]
[1755351344895,4.43531514,188.02,187.95,2.88]
[1755351344896,3.96007437,188.0,187.95,2.88]
[1755351345096,2.89,187.98,187.95,2.88]
[1755351345392,2.89,187.98,187.97,2.88]
[1755351345595,6.84955876,187.98,187.97,2.88]
[1755351346898,3.95955876,187.98,187.97,8.1964]
[1755351347088,3.95955876,187.98,187.97,5.3164]
[1755351347290,2.89,187.98,187.94,3.62709859]
[1755351347494,2.89,187.98,187.96,5.3166]
[1755351347700,2.89,187.98,187.97,2.88]
[1755351349001,2.89,187.98,187.97,8.1964]
[1755351349803,2.89,187.98,187.97,2.88]
[1755351352201,4.43531514,188.04,187.97,8.1964]
[1755351352408,2.97,187.99,187.98,3.05]
[1755351357712,6.9268141,187.99,187.98,3.05]
[1755351357914,2.97,187.99,187.98,3.05]
[1755351358801,2.97,187.99,187.97,3.05]
[1755351359904,2.97,187.99,187.98,3.05]
[1755351360311,6.92784533,187.99,187.98,3.05]
[1755351360713,6.92784533,187.99,187.96,3.05]
[1755351360909,2.97,187.98,187.97,3.05]
[1755351362707,2.97,188.02,187.98,3.05]
[1755351362907,2.97,188.0,187.98,3.05]
[1755351363307,2.97,188.03,187.95,3.05]
[1755351363512,2.97,188.01,187.95,3.05]
[1755351363707,3.9596427,188.0,187.95,3.05]
[1755351363910,2.97,187.98,187.95,3.05]
[1755351364511,2.97,187.97,187.95,3.05]
[1755351366717,2.97,187.96,187.95,3.05]
[1755351367912,2.97,188.02,187.94,6.67709859]
[1755351368111,2.97,188.0,187.94,3.05]
[1755351368312,2.97,187.98,187.92,3.05]
[1755351368512,9.59162285,188.03,187.93,3.05]
[1755351368513,2.97,187.96,187.93,3.05]
[1755351368715,2.97,187.96,187.94,3.05]
[1755351369018,2.97,187.96,187.95,3.05]
[1755351369309,6.93465929,187.96,187.95,3.05]
[1755351370006,2.97,187.95,187.93,3.05]
[1755351370408,2.97,187.95,187.88,3.62709859]
[1755351370613,3.62709859,188.0,187.89,3.05]
[1755351370614,2.97,187.93,187.89,3.05]
[1755351371313,2.97,187.91,187.89,3.05]
[1755351371512,2.97,187.9,187.89,3.05]
[1755351372313,2.97,187.92,187.89,3.05]
[1755351372905,2.97,187.92,187.9,3.05]
[1755351373515,2.97,187.91,187.85,3.62709859]
[1755351374011,2.97,187.91,187.88,5.3188]
[1755351374217,2.97,187.91,187.89,3.05]
[1755351374609,2.97,187.91,187.89,5.3186]
[1755351374808,9.59162285,188.0,187.9,3.05]
[1755351374809,4.46575902,188.0,187.9,3.05]
[1755351375017,2.97,187.98,187.93,3.05]
[1755351375209,3.96753413,187.97,187.93,3.05]
[1755351375514,2.97,187.98,187.95,3.05]
[1755351375709,2.97,188.01,187.96,3.05]
[1755351375913,6.93699555,188.0,187.96,3.05]
[1755351376111,3.96699555,187.99,187.96,3.05]
[1755351376411,3.96699555,187.98,187.96,3.05]
[1755351376613,2.97,187.99,187.96,3.05]
[1755351376807,3.96686585,187.98,187.96,3.05]
[1755351377008,2.97,188.01,187.98,3.05]
[1755351377209,2.97,187.99,187.98,3.05]
[1755351377414,6.93686585,187.99,187.98,3.05]
[1755351377922,6.93686585,187.99,187.95,3.62709859]
[1755351378221,2.97,187.97,187.96,3.05]
[1755351378418,2.97,188.01,187.96,3.05]
[1755351378614,3.97431939,188.0,187.96,2.84]
[1755351378819,2.85,187.98,187.96,2.84]
[1755351379825,2.85,187.98,187.95,3.62709859]
[1755351380016,2.85,187.98,187.97,2.84]
[1755351380418,6.82432949,187.98,187.95,3.62709859]
[1755351380626,2.85,187.97,187.96,2.84]
[1755351385431,8.44000925,188.02,187.93,2.84]
[1755351385631,2.85,187.96,187.93,2.84]
[1755351385828,8.43075152,188.01,187.9,2.84]
[1755351385829,2.85,187.94,187.9,2.84]
[1755351386125,3.97510177,187.93,187.86,3.62709859]
[1755351386435,2.85,187.92,187.89,2.84]
[1755351386833,2.85,187.91,187.9,2.84]
[1755351389030,3.62709859,187.95,187.79,0.92624631]
[1755351389330,3.62709859,187.95,187.82,6.46709859]
[1755351389331,2.85,187.92,187.82,6.46709859]
[1755351389530,2.85,187.9,187.82,2.84]
[1755351389837,2.85,187.88,187.82,2.84]
[1755351390029,3.97473594,187.87,187.79,3.62709859]
[1755351390334,2.85,187.91,187.84,2.84]
[1755351390535,2.85,187.89,187.84,2.84]
[1755351390831,2.85,187.87,187.84,2.84]
[1755351391428,2.85,187.92,187.84,2.84]
[1755351391633,2.85,187.9,187.84,2.84]
[1755351391833,2.85,187.88,187.85,2.84]
[1755351392330,2.85,187.88,187.79,3.62709859]
[1755351392534,2.85,187.88,187.8,2.84]
[1755351393036,2.85,187.88,187.81,2.84]
[1755351394034,2.85,187.88,187.79,5.3213]
[1755351394336,2.85,187.87,187.79,2.84]
[1755351397242,2.85,187.87,187.77,2.84]
[1755351397739,2.85,187.87,187.77,8.162]
[1755351397942,2.85,187.87,187.78,2.84]
[1755351398446,2.85,187.84,187.75,2.84]
[1755351398938,3.62709859,187.82,187.75,2.84]
[1755351399136,2.85,187.81,187.75,2.84]
[1755351400038,2.85,187.81,187.76,2.84]
[1755351400340,2.85,187.81,187.74,2.84]
[1755351402542,2.85,187.81,187.75,2.84]
[1755351403135,2.85,187.81,187.77,5.322]
[1755351403341,2.85,187.81,187.78,2.84]
[1755351404538,2.85,187.84,187.77,2.84]
[1755351406935,2.85,187.84,187.75,8.1625]
[1755351407134,2.85,187.84,187.73,99.80953742]
[1755351407439,2.85,187.84,187.76,2.84]
[1755351408546,2.85,187.84,187.77,3.13]
[1755351412144,2.85,187.84,187.77,8.4519]
[1755351412344,2.85,187.84,187.78,3.13]
[1755351412743,8.09285761,187.91,187.82,3.13]
[1755351412945,3.01,187.89,187.82,3.13]
[1755351413144,3.01,187.89,187.83,3.62709859]
[1755351413348,3.01,187.92,187.84,3.13]
[1755351413650,3.01,187.9,187.84,3.13]
[1755351415946,3.01,187.92,187.86,3.13]
[1755351416451,3.01,187.92,187.87,5.3189]
[1755351416652,3.01,187.92,187.88,3.13]
[1755351417246,133.75,187.98,187.89,3.13]
[1755351417446,3.01,187.96,187.88,3.13]
[1755351417649,3.01,187.94,187.88,3.13]
[1755351420452,3.01,187.94,187.88,8.4488]
[1755351420651,3.01,187.94,187.89,3.13]
[1755351420962,3.01,187.97,187.9,3.13]
[1755351423055,3.01,187.97,187.9,8.4483]
[1755351423256,3.01,187.97,187.91,3.13]
[1755351424953,3.62709859,187.92,187.78,3.13]
[1755351425146,3.01,187.91,187.79,3.13]
[1755351425349,3.01,187.9,187.79,3.13]
[1755351425551,3.01,187.9,187.81,5.3207]
[1755351425857,3.01,187.9,187.82,3.13]
[1755351427156,3.01,187.9,187.83,5.3202]
[1755351427357,3.01,187.9,187.84,3.13]
[1755351429860,3.01,187.94,187.84,6.75709859]
[1755351430061,3.01,187.94,187.85,3.13]
[1755351430262,3.95538459,187.93,187.88,3.13]
[1755351430456,3.01,187.96,187.88,3.13]
[1755351430656,3.95503074,187.95,187.88,3.13]
[1755351430857,3.01,187.96,187.9,3.62709859]
[1755351431057,3.01,187.96,187.91,3.13]
[1755351431258,3.01,187.98,187.91,3.13]
[1755351431864,133.71,188.01,187.94,3.13]
[1755351432164,3.95407196,188.0,187.94,3.13]
[1755351432460,3.01,188.01,187.94,3.13]
[1755351432763,3.9529104,188.0,187.94,3.13]
[1755351432958,3.01,188.01,187.94,3.13]
[1755351433164,3.01,188.01,187.95,5.3169]
[1755351433364,8.06988015,188.05,187.95,5.3169]
[1755351433365,3.01,188.04,187.96,3.13]
[1755351433565,3.01,188.02,187.96,3.13]
[1755351433766,3.95163688,188.01,187.96,3.13]
[1755351433968,3.01,188.0,187.96,3.13]
[1755351435367,4.44278156,188.07,187.96,8.4466]
[1755351435567,3.01,188.01,187.97,3.13]
[1755351436167,3.01,188.0,187.97,3.13]
[1755351437971,3.01,188.07,187.97,3.13]
[1755351438173,3.01,188.05,187.97,3.13]
[1755351438766,3.01,188.05,188.0,2.9]
[1755351440781,3.13,188.04,188.02,2.9]
[1755351440970,130.74,188.09,188.02,2.9]
[1755351441177,3.13,188.03,188.02,2.9]
[1755351441676,3.13,188.08,188.02,2.9]
[1755351447281,3.13,188.11,188.02,3.62709859]
[1755351447482,3.13,188.11,188.03,2.9]
[1755351448182,3.13,188.11,188.04,5.3143]
[1755351448382,3.13,188.11,188.05,2.9]
[1755351449381,3.13,188.15,188.09,2.9]
[1755351450082,3.13,188.15,188.11,2.9]
[1755351450484,3.62709859,188.22,188.12,2.9]
[1755351450689,3.13,188.18,188.12,2.9]
[1755351450877,3.13,188.18,188.13,2.9]
[1755351451081,3.13,188.18,188.14,2.9]
[1755351451284,3.13,188.18,188.15,2.9]
[1755351452679,3.13,188.22,188.16,2.9]
[1755351452883,3.91689288,188.21,188.16,2.9]
[1755351453083,3.13,188.2,188.16,2.9]
[1755351454089,3.13,188.2,188.12,2.9]
[1755351455889,3.13,188.2,188.11,3.62709859]
[1755351456098,3.13,188.2,188.14,2.9]
[1755351457192,3.91731669,188.19,188.14,2.9]
[1755351457490,3.13,188.22,188.14,2.9]
[1755351457692,3.13,188.2,188.14,2.9]
[1755351460593,3.91704295,188.19,188.11,3.62709859]
[1755351460788,3.9172414,188.18,188.12,2.9]
[1755351461096,3.13,188.22,188.12,2.9]
[1755351461296,3.13,188.2,188.12,2.9]
[1755351461496,3.13,188.18,188.12,2.9]
[1755351462992,3.13,188.18,188.1,2.9]
[1755351463198,3.13,188.16,188.1,2.9]
[1755351467497,3.13,188.14,188.02,2.9]
[1755351467692,7.54946019,188.13,188.02,2.9]
[1755351467885,3.9223616,188.12,188.02,2.9]
[1755351468092,3.13,188.11,188.04,2.9]
[1755351468590,8.06988015,188.16,188.06,3.05]
[1755351468795,2.93,188.1,188.06,3.05]
[1755351469191,2.93,188.09,188.06,3.05]
[1755351470000,2.93,188.15,188.06,3.05]
[1755351470291,2.93,188.13,188.06,3.05]
[1755351470597,6.85572493,188.12,188.06,5.3137]
[1755351470800,6.85572493,188.12,188.03,3.62709859]
[1755351470801,8.06988015,188.16,188.07,3.05]
[1755351471098,2.93,188.11,188.07,3.05]
[1755351471892,8.06988015,188.16,188.07,3.05]
[1755351471893,2.93,188.1,188.07,8.3635]
[1755351472092,2.93,188.1,188.04,3.05]
[1755351472597,2.93,188.1,188.05,3.05]
[1755351475901,4.44278156,188.14,188.05,5.314]
[1755351476095,2.93,188.12,188.06,3.05]
[1755351476400,4.44278156,188.14,188.06,3.05]
[1755351476401,2.93,188.1,188.06,3.05]
[1755351476702,2.93,188.08,188.06,3.05]
[1755351478202,2.93,188.12,187.99,3.62709859]
[1755351478403,2.93,188.1,188.0,3.05]
[1755351478603,2.93,188.08,188.0,3.05]
[1755351478898,2.93,188.06,188.02,3.05]
[1755351479103,2.93,188.09,188.02,3.05]
[1755351479299,6.88178473,188.08,188.03,3.05]
[1755351479502,2.93,188.12,188.03,3.05]
[1755351479702,2.93,188.1,188.03,3.05]
[1755351480003,2.93,188.08,188.03,3.05]
[1755351480208,3.95253482,188.07,188.03,3.05]
[1755351480402,2.93,188.05,188.03,3.05]
[1755351480602,4.44278156,188.11,188.03,3.05]
[1755351480803,2.93,188.09,188.03,3.05]
[1755351481004,2.93,188.07,188.04,3.05]
[1755351481199,2.93,188.05,188.04,3.05]
[1755351482094,2.93,188.05,188.02,3.05]
[1755351482299,2.93,188.04,188.02,5.3149]
[1755351482797,2.93,188.09,188.03,3.05]
[1755351482997,2.93,188.07,188.01,5.3152]
[1755351483204,3.95615009,188.06,188.01,5.3152]
[1755351483398,2.93,188.05,188.03,3.05]
[1755351483599,2.93,188.09,188.03,3.05]
[1755351483801,2.93,188.07,188.03,3.05]
[1755351483996,3.95691682,188.06,188.04,3.05]
[1755351484196,2.93,188.09,188.04,3.05]
[1755351484397,2.93,188.07,188.04,3.05]
[1755351484602,2.93,188.05,188.04,3.05]
[1755351487503,2.93,188.07,188.04,3.05]
[1755351487711,2.93,188.09,188.06,8.3638]
[1755351487908,6.88738276,188.08,188.07,3.05]
[1755351488110,8.21601927,188.08,188.02,3.62709859]
[1755351488306,2.93,188.06,188.03,3.05]
[1755351490107,3.62709859,188.1,188.0,3.05]
[1755351490309,2.93,188.08,188.0,3.05]
[1755351490509,2.93,188.06,188.0,3.05]
[1755351490906,2.93,188.06,188.01,5.3151]
[1755351491114,2.93,188.06,188.02,3.05]
[1755351491409,2.93,188.09,188.02,5.3148]
[1755351491606,2.93,188.07,188.02,3.62709859]
[1755351491812,2.93,188.09,188.03,3.05]
[1755351492114,2.93,188.09,188.05,3.05]
[1755351492508,2.93,188.09,188.03,3.05]
[1755351492708,2.93,188.07,188.0,3.05]
[1755351493110,2.93,188.07,188.01,5.3152]
[1755351493311,2.93,188.07,188.02,3.05]
[1755351494515,2.93,188.07,188.03,3.05]
[1755351494915,2.93,188.07,188.01,3.05]
[1755351495816,2.93,188.07,188.01,5.3152]
[1755351496015,2.93,188.07,188.03,3.05]
[1755351496714,2.93,188.07,187.99,3.05]
[1755351497116,2.93,188.07,188.01,5.3152]
[1755351497317,2.93,188.07,188.03,3.05]
[1755351498018,2.93,188.07,188.04,3.05]
[1755351498414,2.93,188.09,187.99,3.05]
[1755351498620,2.83,188.07,187.99,3.05]
[1755351499123,2.83,188.07,188.03,2.88]
[1755351501526,2.83,188.07,188.04,2.88]
[1755351504211,2.83,188.05,188.04,2.88]
[1755351505219,4.44278156,188.1,188.02,5.3149]
[1755351505426,2.83,188.04,188.02,5.3149]
[1755351505818,2.83,188.04,188.03,2.88]
[1755351509423,4.44278156,188.09,188.03,2.88]
[1755351509622,2.83,188.05,188.03,2.88]
[1755351510021,2.83,188.05,188.03,8.1946]
[1755351510214,2.83,188.05,188.04,2.88]
[1755351510621,2.83,188.08,188.04,2.88]
[1755351510822,3.96135599,188.07,188.04,2.88]
[1755351511020,2.83,188.08,188.04,2.88]
[1755351511021,3.96135599,188.06,188.05,5.3141]
[1755351511326,2.83,188.08,188.05,8.1941]
[1755351511521,6.79239167,188.07,188.06,2.88]
[1755351512026,6.79239167,188.07,188.06,8.1938]
[1755351512227,3.96239167,188.07,188.06,8.1938]
[1755351512729,2.83,188.08,188.07,5.3135]
[1755351512919,6.79416163,188.08,188.07,8.1935]
[1755351515228,3.96416163,188.08,188.07,8.1935]
[1755351516532,2.83,188.09,188.08,8.1933]
[1755351516726,2.83,188.12,188.08,2.88]
[1755351516927,3.96342666,188.11,188.08,2.88]
[1755351517125,2.83,188.12,188.11,8.1924]
[1755351517519,6.79223555,188.12,188.11,8.1924]
[1755351517925,6.79223555,188.12,188.09,2.88]
[1755351518119,2.83,188.1,188.07,3.62709859]
[1755351518323,2.83,188.15,188.12,5.3121]
[1755351518523,3.96142015,188.14,188.1,3.62709859]
[1755351518721,2.83,188.17,188.11,2.88]
[1755351518918,3.9610215,188.16,188.11,2.88]
[1755351519125,6.7910215,188.15,188.11,2.88]
[1755351519423,2.83,188.15,188.13,5.3118]
[1755351519624,2.83,188.15,188.14,2.88]
[1755351519825,3.9589717,188.15,188.12,2.88]
[1755351520027,3.9589717,188.15,188.1,3.62709859]
[1755351520028,3.9589717,188.14,188.1,3.62709859]
[1755351520224,2.83,188.13,188.09,2.88]
[1755351521132,2.83,188.13,188.1,2.88]
[1755351521629,2.83,188.11,188.01,3.62709859]
[1755351521826,2.83,188.09,188.02,2.88]
[1755351522026,3.95694224,188.08,188.02,2.88]
[1755351522324,2.83,188.06,188.02,2.88]
[1755351523325,2.83,188.06,188.04,2.88]
[1755351523525,2.83,188.11,188.02,2.88]
[1755351523728,2.83,188.09,188.02,2.88]
[1755351524036,2.83,188.07,188.02,2.88]
[1755351524332,2.83,188.05,188.02,2.88]
[1755351524631,2.83,188.05,188.03,2.88]
[1755351524828,2.83,188.04,188.03,2.88]
[1755351525933,2.83,188.04,188.01,2.88]
[1755351526231,2.83,188.03,188.02,2.88]
[1755351535738,3.08,188.08,188.02,2.88]
[1755351535932,3.99202452,188.07,188.02,2.88]
[1755351536139,3.08,188.05,188.02,2.88]
[1755351536433,3.08,188.04,188.03,2.85]
[1755351536935,3.08,188.08,188.04,2.85]
[1755351537133,3.99198997,188.07,188.04,2.85]
[1755351537335,3.99198997,188.06,188.04,2.85]
[1755351537538,7.07198997,188.05,188.04,2.85]
[1755351537936,3.08,188.05,188.04,2.85]
[1755351538133,3.08,188.05,188.04,8.1644]
[1755351538341,3.08,188.09,188.04,2.85]
[1755351538539,3.99158671,188.08,188.04,2.85]